fUST/lending_fUST_20240919
["ID","MTS","AMOUNT","RATE_DAILY","PERIOD"]
[338600660,1726760898110,500.0,0.00021999,60]
[338600661,1726760898405,500.0,0.00021999,60]
[338600662,1726760898669,410.95,0.00021999,60]
[338600664,1726760922361,500.0,0.00021999,60]
[338600665,1726760924425,500.0,0.00021999,60]
[338600666,1726760937925,500.0,0.00021999,60]
[338600667,1726760938376,533.25,0.00021999,60]
[338600671,1726760942528,500.0,0.00021999,60]
[338600672,1726760942863,335.17,0.00021999,60]
[338600673,1726760947755,500.0,0.00021999,60]
[338600674,1726760964820,500.0,0.00021999,60]
[338600678,1726760967972,500.0,0.00021999,60]
[338600683,1726760995157,500.0,0.00021999,60]
[338600684,1726760995419,500.0,0.00021999,60]
[338600685,1726760995721,500.0,0.00021999,60]
[338600686,1726760995989,323.38,0.00021999,60]
[338600687,1726760996787,500.0,0.00021999,60]
[338600688,1726760997079,347.55,0.00021999,60]
[338600689,1726761004356,250.0,0.0001375,2]
[338600690,1726761004596,250.0,0.00013788,2]
[338600691,1726761004834,250.0,0.00013826,2]
[338600692,1726761005021,500.0,0.00021999,60]
[338600693,1726761005064,250.0,0.00013863,2]
[338600694,1726761005310,250.0,0.00013901,2]
[338600695,1726761005542,250.0,0.00013939,2]
[338600696,1726761005797,250.0,0.00013976,2]
[338600697,1726761009395,500.0,0.00021999,60]
[338600698,1726761009663,500.0,0.00021999,60]
[338600699,1726761009944,386.11,0.00021999,60]
[338600700,1726761016975,500.0,0.00021999,60]
[338600701,1726761024615,500.0,0.00021999,60]
[338600702,1726761025962,500.0,0.00021999,60]
[338600743,1726761033555,-250.0,0.00014014,2]
[338600744,1726761033565,-250.0,0.00014052,2]
[338600745,1726761033577,-250.0,0.0001409,2]
[338600746,1726761033587,-250.0,0.00014127,2]
[338600747,1726761033597,-250.0,0.00014165,2]
[338600748,1726761033607,-250.0,0.00014203,2]
[338600749,1726761033617,-250.0,0.0001424,2]
[338600750,1726761033626,-250.0,0.00014278,2]
[338600751,1726761033637,-250.0,0.00014316,2]
[338600752,1726761033647,-250.0,0.00014353,2]
[338600753,1726761033656,-250.0,0.00014391,2]
[338600754,1726761033666,-250.0,0.00014429,2]
[338600755,1726761033676,-239.51750301,0.00014448,2]
[338600756,1726761033686,-250.0,0.00014467,2]
[338600757,1726761033696,-239.51750301,0.00014471,2]
[338600758,1726761033705,-239.51750301,0.00014494,2]
[338600759,1726761033715,-239.51750301,0.00014518,2]
[338600760,1726761033724,-110.05731959,0.0001454,2]
[338600761,1726761033734,-239.51750301,0.00014541,2]
[338600762,1726761033744,-162.541042,0.00014548,2]
[338600763,1726761033754,-162.541042,0.00014555,2]
[338600764,1726761033764,-162.541042,0.00014562,2]
[338600765,1726761033774,-239.51750301,0.00014564,2]
[338600766,1726761033783,-162.541042,0.00014569,2]
[338600767,1726761033793,-162.541042,0.00014577,2]
[338600768,1726761033802,-162.541042,0.00014584,2]
[338600769,1726761033811,-239.51750301,0.00014587,2]
[338600770,1726761033821,-162.541042,0.00014591,2]
[338600771,1726761033832,-162.541042,0.00014598,2]
[338600772,1726761033842,-239.51750301,0.0001461,2]
[338600773,1726761033852,-239.51750301,0.00014634,2]
[338600774,1726761033862,-239.51750301,0.00014657,2]
[338600775,1726761033871,-239.51750301,0.0001468,2]
[338600776,1726761033880,-239.51750301,0.00014703,2]
[338600777,1726761033890,-239.51750301,0.00014727,2]
[338600778,1726761033899,-603.60064015,0.00014899,2]
[338600779,1726761033910,-300.0,0.00014972,2]
[338600780,1726761033920,-161.06797021,0.00014973,2]
[338600781,1726761033930,-439.81669536,0.00014973,2]
[338600782,1726761034079,-99.07552477,0.00014973,2]
[338600783,1726761034088,-206.77338716,0.00014973,2]
[338600784,1726761034122,-294.38433032,0.00014973,2]
[338600785,1726761034131,-500.0,0.00014973,2]
[338600786,1726761034144,-500.0,0.00014973,2]
[338600787,1726761034154,-500.0,0.00014973,2]
[338600788,1726761034164,-500.0,0.00014973,2]
[338600789,1726761034173,-500.0,0.00014973,2]
[338600790,1726761034183,-500.0,0.00014973,2]
[338600791,1726761034193,-500.66153,0.00014973,2]
[338600792,1726761034202,-500.0,0.00014973,2]
[338600793,1726761034211,-500.0,0.00014973,2]
[338600794,1726761034221,-500.0,0.00014973,2]
[338600795,1726761034231,-500.0,0.00014973,2]
[338600796,1726761034240,-46.70648786,0.00014989,2]
[338600797,1726761036697,500.0,0.00021999,60]
[338600817,1726761038688,-239.51750301,0.0001475,2]
[338600818,1726761038697,-500.0,0.00014973,2]
[338600819,1726761038707,-500.0,0.00014988,2]
[338600820,1726761038715,-385.00777646,0.00014988,2]
[338600821,1726761038726,-500.0,0.00014988,2]
[338600822,1726761038737,-500.0,0.00014988,2]
[338600823,1726761038747,-500.0,0.00014988,2]
[338600824,1726761038758,-500.0,0.00014988,2]
[338600825,1726761038767,-500.0,0.00014988,2]
[338600826,1726761038777,-395.52433679,0.00014988,2]
[338600827,1726761038787,-500.0,0.00014988,2]
[338600828,1726761038796,-500.0,0.00014988,2]
[338600829,1726761038805,-500.0,0.00014988,2]
[338600830,1726761038815,-500.0,0.00014988,2]
[338600831,1726761038824,-250.28448367,0.00014988,2]
[338600832,1726761038833,-500.0,0.00014988,2]
[338600833,1726761038842,-500.0,0.00014988,2]
[338600834,1726761038851,-500.0,0.00014988,2]
[338600835,1726761038861,-500.0,0.00014988,2]
[338600836,1726761038870,-51.21421067,0.00014988,2]
[338600837,1726761038886,-448.78578933,0.00014988,2]
[338600838,1726761038895,-500.0,0.00014988,2]
[338600839,1726761038904,-500.0,0.00014988,2]
[338600840,1726761038914,-500.0,0.00014988,2]
[338600841,1726761038923,-500.0,0.00014988,2]
[338600842,1726761038932,-500.0,0.00014988,2]
[338600843,1726761038941,-500.0,0.00014988,2]
[338600844,1726761038951,-500.0,0.00014988,2]
[338600845,1726761038960,-500.0,0.00014988,2]
[338600846,1726761038969,-386.32558373,0.00014988,2]
[338600847,1726761038979,-500.0,0.00014988,2]
[338600848,1726761038988,-500.0,0.00014988,2]
[338600849,1726761038997,-500.0,0.00014988,2]
[338600850,1726761039006,-500.0,0.00014988,2]
[338600851,1726761039015,-539.47688995,0.00014988,2]
[338600852,1726761039026,-500.0,0.00014988,2]
[338600853,1726761039035,-500.0,0.00014988,2]
[338600854,1726761039045,-500.0,0.00014988,2]
[338600855,1726761039055,-500.0,0.00014988,2]
[338600856,1726761039067,-500.0,0.00014988,2]
[338600857,1726761039076,-500.0,0.00014988,2]
[338600858,1726761039086,-500.0,0.00014988,2]
[338600859,1726761039095,-500.0,0.00014988,2]
[338600860,1726761039105,-500.0,0.00014988,2]
[338600861,1726761039114,-500.0,0.00014988,2]
[338600862,1726761039123,-500.0,0.00014988,2]
[338600863,1726761039133,-500.0,0.00014988,2]
[338600864,1726761039144,-500.0,0.00014988,2]
[338600865,1726761039153,-500.0,0.00014988,2]
[338600866,1726761039162,-500.0,0.00014988,2]
[338600867,1726761039172,-500.0,0.00014988,2]
[338600868,1726761039183,-281.79279082,0.00014988,2]
[338600869,1726761039192,-240.81745538,0.00014988,2]
[338600870,1726761039203,-259.18254462,0.00014988,2]
[338600871,1726761039213,-500.0,0.00014988,2]
[338600872,1726761039223,-500.0,0.00014988,2]
[338600873,1726761039232,-500.0,0.00014988,2]
[338600874,1726761039243,-500.0,0.00014988,2]
[338600875,1726761039252,-500.0,0.00014988,2]
[338600876,1726761039261,-500.0,0.00014988,2]
[338600877,1726761039431,-500.0,0.00014988,2]
[338600878,1726761039443,-500.0,0.00014988,2]
[338600879,1726761039452,-500.0,0.00014988,2]
[338600880,1726761039462,-500.0,0.00014988,2]
[338600881,1726761039472,-500.0,0.00014988,2]
[338600882,1726761039481,-500.0,0.00014988,2]
[338600883,1726761039491,-500.0,0.00014988,2]
[338600884,1726761039500,-500.0,0.00014988,2]
[338600885,1726761039509,-500.0,0.00014988,2]
[338600886,1726761039519,-500.0,0.00014988,2]
[338600887,1726761039528,-500.0,0.00014988,2]
[338600888,1726761039537,-500.0,0.00014988,2]
[338600889,1726761039547,-500.0,0.00014988,2]
[338600890,1726761039556,-500.0,0.00014988,2]
[338600891,1726761039566,-500.0,0.00014988,2]
[338600892,1726761039575,-500.0,0.00014988,2]
[338600893,1726761039583,-500.0,0.00014988,2]
[338600894,1726761039592,-500.0,0.00014988,2]
[338600895,1726761039602,-500.0,0.00014988,2]
[338600896,1726761039611,-500.0,0.00014988,2]
[338600897,1726761039622,-370.69250798,0.00014988,2]
[338600898,1726761039635,-129.30749202,0.00014988,2]
[338600899,1726761039645,-500.0,0.00014988,2]
[338600900,1726761039654,-500.0,0.00014988,2]
[338600901,1726761039664,-500.0,0.00014988,2]
[338600902,1726761039673,-557.91372113,0.00014988,2]
[338600903,1726761039683,-500.0,0.00014988,2]
[338600904,1726761039692,-500.0,0.00014988,2]
[338600905,1726761039701,-500.0,0.00014988,2]
[338600906,1726761039711,-500.0,0.00014988,2]
[338600907,1726761039720,-500.0,0.00014988,2]
[338600908,1726761039730,-500.0,0.00014988,2]
[338600909,1726761039739,-500.0,0.00014988,2]
[338600910,1726761039748,-500.0,0.00014988,2]
[338600911,1726761039758,-500.0,0.00014988,2]
[338600912,1726761039767,-76144.57902094,0.00014989,2]
[338600913,1726761039776,-117867.531436,0.00014989,2]
[338600914,1726761039785,-500.0,0.00014989,2]
[338600915,1726761039794,-500.0,0.00014989,2]
[338600916,1726761039803,-500.0,0.00014989,2]
[338600917,1726761039812,-500.0,0.00014989,2]
[338600918,1726761039822,-500.0,0.00014989,2]
[338600919,1726761039831,-500.0,0.00014989,2]
[338600920,1726761039840,-179.45455072,0.00014989,2]
[338600921,1726761039849,-500.0,0.00014989,2]
[338600922,1726761039858,-500.0,0.00014989,2]
[338600923,1726761039867,-500.0,0.00014989,2]
[338600924,1726761039876,-435.55471837,0.00014989,2]
[338600925,1726761039886,-500.0,0.00014989,2]
[338600926,1726761039895,-500.0,0.00014989,2]
[338600927,1726761039904,-500.0,0.00014989,2]
[338600928,1726761039913,-192.80876812,0.00014989,2]
[338600929,1726761039922,-500.0,0.00014989,2]
[338600930,1726761039931,-500.0,0.00014989,2]
[338600931,1726761039941,-500.0,0.00014989,2]
[338600932,1726761039950,-313.17763276,0.00014989,2]
[338600933,1726761039959,-500.0,0.00014989,2]
[338600934,1726761039969,-500.0,0.00014989,2]
[338600935,1726761039978,-500.0,0.00014989,2]
[338600936,1726761039988,-500.0,0.00014989,2]
[338600937,1726761039997,-500.0,0.00014989,2]
[338600938,1726761040006,-590.8449084,0.00014989,2]
[338600939,1726761040016,-500.0,0.00014989,2]
[338600940,1726761040025,-500.0,0.00014989,2]
[338600941,1726761040034,-500.0,0.00014989,2]
[338600942,1726761040043,-500.0,0.00014989,2]
[338600943,1726761040052,-500.0,0.00014989,2]
[338600945,1726761040062,-500.0,0.00014989,2]
[338600946,1726761040075,-500.0,0.00014989,2]
[338600947,1726761040083,-500.0,0.00014989,2]
[338600948,1726761040092,-537.59734193,0.00014989,2]
[338600949,1726761040102,-500.0,0.00014989,2]
[338600951,1726761040112,-500.0,0.00014989,2]
[338600952,1726761040121,-500.0,0.00014989,2]
[338600953,1726761040131,-500.0,0.00014989,2]
[338600954,1726761040140,-169.93724165,0.0001499,2]
[338600955,1726761040152,-228573.856526,0.0001499,2]
[338600956,1726761040161,-353602.594308,0.0001499,2]
[338600957,1726761040170,-151015.32133514,0.00015,2]
[338600958,1726761040180,-150.112242,0.00015,2]
[338600959,1726761040189,-603.60064013,0.00015375,2]
[338600960,1726761040198,-603.60064013,0.0001585,2]
[338600961,1726761040207,-208.6901718,0.00016178,2]
[338600963,1726761040216,-603.60064013,0.00016326,2]
[338600964,1726761040226,-500.88481706,0.00016342,2]
[338600965,1726761040235,-501.50815981,0.00016342,2]
[338600967,1726761040244,-1000.0,0.00016342,2]
[338600968,1726761040253,-500.0,0.00016342,2]
[338600969,1726761040263,-957.26930516,0.00016342,2]
[338600970,1726761040273,-806.89507285,0.00016342,2]
[338600971,1726761040282,-1000.0,0.00016342,2]
[338600972,1726761040291,-1000.0,0.00016342,2]
[338600973,1726761040300,-1000.0,0.00016342,2]
[338600974,1726761040310,-154.47825899,0.00016463,2]
[338600975,1726761040320,-420.0,0.00016469,2]
[338600976,1726761040333,-76191.2855088,0.0001651,2]
[338600977,1726761040346,-117867.531436,0.0001651,2]
[338600978,1726761040356,-5888.1711477,0.00016676,2]
[338600979,1726761040366,-500.0,0.000168,2]
[338600980,1726761040375,-500.0,0.000168,2]
[338600981,1726761040388,-500.0,0.000168,2]
[338600982,1726761040397,-500.0,0.000168,2]
[338600983,1726761040406,-500.0,0.000168,2]
[338600984,1726761040415,-318.46183641,0.000168,2]
[338600985,1726761040426,-500.0,0.000168,2]
[338600986,1726761040436,-500.0,0.000168,2]
[338600988,1726761040445,-500.0,0.000168,2]
[338600989,1726761040454,-500.0,0.000168,2]
[338600991,1726761040463,-500.0,0.000168,2]
[338600993,1726761040472,-500.0,0.000168,2]
[338600995,1726761040481,-500.0,0.000168,2]
[338600996,1726761040490,-500.0,0.000168,2]
[338600997,1726761040500,-500.0,0.000168,2]
[338600998,1726761040509,-266.0,0.000168,2]
[338600999,1726761040518,-603.60064013,0.00016801,2]
[338601000,1726761040527,-195.264061,0.0001689,2]
[338601001,1726761040537,-151.0,0.0001689,2]
[338601002,1726761040546,-151.0,0.0001689,2]
[338601003,1726761040555,-151.0,0.0001689,2]
[338601004,1726761040565,-151.0,0.0001689,2]
[338601005,1726761040575,-151.0,0.0001689,2]
[338601006,1726761040584,-2114.854092,0.0001689,2]
[338601008,1726761040594,-151.0,0.0001689,2]
[338601010,1726761040603,-151.0,0.0001689,2]
[338601012,1726761040613,-2114.854092,0.0001689,2]
[338601014,1726761040622,-1177.722861,0.0001689,2]
[338601016,1726761040631,-1177.722861,0.0001689,2]
[338601017,1726761040640,-151.0,0.0001689,2]
[338601018,1726761040650,-204.11834,0.0001689,2]
[338601019,1726761040659,-151.0,0.0001689,2]
[338601020,1726761040669,-151.0,0.0001689,2]
[338601021,1726761040677,-204.11834,0.0001689,2]
[338601022,1726761040687,-4541.209993,0.0001689,2]
[338601023,1726761040697,-4541.209993,0.0001689,2]
[338601024,1726761040707,-151.0,0.0001689,2]
[338601025,1726761040716,-1115.064774,0.0001689,2]
[338601026,1726761040725,-1115.064774,0.0001689,2]
[338601027,1726761040734,-151.0,0.0001689,2]
[338601028,1726761040744,-1356.736386,0.0001689,2]
[338601029,1726761040753,-1356.736386,0.0001689,2]
[338601030,1726761040762,-204.030332,0.0001689,2]
[338601031,1726761040771,-204.030332,0.0001689,2]
[338601032,1726761040780,-151.0,0.0001689,2]
[338601033,1726761040790,-151.0,0.0001689,2]
[338601034,1726761040799,-2976.436592,0.0001689,2]
[338601035,1726761040808,-168.357058,0.0001689,2]
[338601036,1726761040817,-2976.436592,0.0001689,2]
[338601037,1726761040826,-150.112233,0.000169,2]
[338601038,1726761040835,-150.112233,0.000169,2]
[338601039,1726761040845,-150.112233,0.000169,2]
[338601040,1726761040855,-150.112233,0.000169,2]
[338601041,1726761040864,-150.112233,0.000169,2]
[338601042,1726761040873,-226.208856,0.000169,2]
[338601043,1726761040882,-6267.37580964,0.000169,2]
[338601044,1726761040891,-150.0,0.000169,2]
[338601045,1726761040900,-5000.0,0.000169,2]
[338601046,1726761040910,-5000.0,0.000169,2]
[338601047,1726761040920,-5000.0,0.000169,2]
[338601048,1726761040929,-5000.0,0.000169,2]
[338601049,1726761040938,-5000.0,0.000169,2]
[338601050,1726761040948,-5000.0,0.000169,2]
[338601051,1726761040957,-5000.0,0.000169,2]
[338601052,1726761040967,-2497.82809,0.000169,2]
[338601053,1726761040976,-151.0,0.000169,2]
[338601054,1726761040985,-2976.436592,0.000169,2]
[338601055,1726761040994,-2976.436592,0.000169,2]
[338601056,1726761041003,-151.0,0.00016901,2]
[338601057,1726761041012,-151.0,0.00016901,2]
[338601058,1726761041022,-151.0,0.00016901,2]
[338601059,1726761041031,-151.0,0.00016901,2]
[338601060,1726761041041,-151.0,0.00016901,2]
[338601061,1726761041052,-257.115227,0.00016901,2]
[338601062,1726761041061,-1213.704167,0.00016901,2]
[338601063,1726761041074,-1213.704167,0.00016901,2]
[338601064,1726761041083,-151.0,0.00016901,2]
[338601065,1726761041092,-151.0,0.00016901,2]
[338601066,1726761041103,-151.0,0.00016901,2]
[338601067,1726761041112,-151.0,0.00016901,2]
[338601068,1726761041124,-151.0,0.00016901,2]
[338601069,1726761041134,-1213.704167,0.00016901,2]
[338601070,1726761041146,-151.0,0.00016901,2]
[338601071,1726761041157,-1213.704167,0.00016901,2]
[338601072,1726761041166,-167.658974,0.00016901,2]
[338601073,1726761041175,-151.0,0.00016901,2]
[338601074,1726761041185,-151.0,0.00016901,2]
[338601075,1726761041194,-151.0,0.00016901,2]
[338601076,1726761041204,-151.0,0.00016901,2]
[338601077,1726761041213,-151.0,0.00016901,2]
[338601078,1726761041223,-151.0,0.00016901,2]
[338601079,1726761041232,-2114.854092,0.00016901,2]
[338601080,1726761041242,-2114.854092,0.00016901,2]
[338601081,1726761041251,-151.0,0.00016901,2]
[338601082,1726761041260,-2114.854092,0.00016901,2]
[338601083,1726761041269,-151.0,0.00016901,2]
[338601084,1726761041279,-151.0,0.00016901,2]
[338601085,1726761041288,-151.0,0.00016901,2]
[338601086,1726761041298,-2114.854092,0.00016901,2]
[338601087,1726761041307,-151.0,0.00016901,2]
[338601088,1726761041317,-2114.854092,0.00016901,2]
[338601089,1726761041326,-151.0,0.00016901,2]
[338601090,1726761041336,-2114.854092,0.00016901,2]
[338601091,1726761041345,-1177.722861,0.00016901,2]
[338601092,1726761041355,-1177.722861,0.00016901,2]
[338601093,1726761041364,-1177.722861,0.00016901,2]
[338601094,1726761041373,-1177.722861,0.00016901,2]
[338601095,1726761041383,-1177.722861,0.00016901,2]
[338601096,1726761041392,-1177.722861,0.00016901,2]
[338601097,1726761041402,-151.0,0.00016901,2]
[338601098,1726761041411,-151.0,0.00016901,2]
[338601099,1726761041421,-151.0,0.00016901,2]
[338601100,1726761041431,-204.11834,0.00016901,2]
[338601101,1726761041440,-204.11834,0.00016901,2]
[338601102,1726761041450,-151.0,0.00016901,2]
[338601103,1726761041459,-204.11834,0.00016901,2]
[338601104,1726761041469,-151.0,0.00016901,2]
[338601105,1726761041478,-151.0,0.00016901,2]
[338601106,1726761041487,-151.0,0.00016901,2]
[338601107,1726761041497,-206.737878,0.00016901,2]
[338601108,1726761041506,-204.11834,0.00016901,2]
[338601109,1726761041516,-204.11834,0.00016901,2]
[338601110,1726761041525,-204.11834,0.00016901,2]
[338601111,1726761041535,-4541.209993,0.00016901,2]
[338601112,1726761041543,-4541.209993,0.00016901,2]
[338601113,1726761041553,-4541.209993,0.00016901,2]
[338601114,1726761041562,-4541.209993,0.00016901,2]
[338601115,1726761041571,-4541.209993,0.00016901,2]
[338601116,1726761041580,-4541.209993,0.00016901,2]
[338601117,1726761041589,-151.0,0.00016901,2]
[338601118,1726761041599,-151.0,0.00016901,2]
[338601119,1726761041608,-151.0,0.00016901,2]
[338601120,1726761041617,-1115.064774,0.00016901,2]
[338601121,1726761041626,-1115.064774,0.00016901,2]
[338601122,1726761041635,-1115.064774,0.00016901,2]
[338601123,1726761041643,-1115.064774,0.00016901,2]
[338601124,1726761041653,-1115.064774,0.00016901,2]
[338601125,1726761041662,-1115.064774,0.00016901,2]
[338601126,1726761041671,-1115.064774,0.00016901,2]
[338601127,1726761041680,-1115.064774,0.00016901,2]
[338601128,1726761041689,-258.713938,0.00016901,2]
[338601129,1726761041699,-1356.736386,0.00016901,2]
[338601130,1726761041709,-1356.736386,0.00016901,2]
[338601131,1726761041718,-1356.736386,0.00016901,2]
[338601132,1726761041729,-1356.736386,0.00016901,2]
[338601133,1726761041738,-1356.736386,0.00016901,2]
[338601134,1726761041747,-1356.736386,0.00016901,2]
[338601135,1726761041756,-1356.736386,0.00016901,2]
[338601136,1726761041765,-1356.736386,0.00016901,2]
[338601137,1726761041774,-204.030332,0.00016901,2]
[338601138,1726761041783,-204.030332,0.00016901,2]
[338601139,1726761041792,-204.030332,0.00016901,2]
[338601140,1726761041803,-204.030332,0.00016901,2]
[338601141,1726761041812,-204.030332,0.00016901,2]
[338601142,1726761041822,-204.030332,0.00016901,2]
[338601143,1726761041831,-151.0,0.00016901,2]
[338601144,1726761041840,-151.0,0.00016901,2]
[338601145,1726761041850,-151.0,0.00016901,2]
[338601146,1726761041859,-151.0,0.00016901,2]
[338601147,1726761041868,-151.0,0.00016901,2]
[338601148,1726761041877,-151.0,0.00016901,2]
[338601149,1726761041886,-151.0,0.00016901,2]
[338601150,1726761041895,-2976.436592,0.00016901,2]
[338601151,1726761041905,-2976.436592,0.00016901,2]
[338601152,1726761041913,-2976.436592,0.00016901,2]
[338601153,1726761041922,-2976.436592,0.00016901,2]
[338601154,1726761041931,-2976.436592,0.00016901,2]
[338601155,1726761041940,-2976.436592,0.00016901,2]
[338601156,1726761041949,-151.0,0.00016908,2]
[338601157,1726761041959,-151.0,0.00016908,2]
[338601158,1726761041968,-1213.704167,0.00016908,2]
[338601159,1726761041977,-151.0,0.00016908,2]
[338601160,1726761041987,-151.0,0.00016908,2]
[338601161,1726761041996,-1213.704167,0.00016908,2]
[338601162,1726761042005,-151.0,0.00016908,2]
[338601163,1726761042014,-151.0,0.00016908,2]
[338601164,1726761042023,-2114.854092,0.00016908,2]
[338601165,1726761042032,-151.0,0.00016908,2]
[338601166,1726761042041,-151.0,0.00016908,2]
[338601167,1726761042050,-2114.854092,0.00016908,2]
[338601168,1726761042059,-1177.722861,0.00016908,2]
[338601169,1726761042072,-1177.722861,0.00016908,2]
[338601170,1726761042081,-151.0,0.00016908,2]
[338601171,1726761042090,-204.11834,0.00016908,2]
[338601172,1726761042099,-151.0,0.00016908,2]
[338601173,1726761042109,-204.11834,0.00016908,2]
[338601174,1726761042119,-4541.209993,0.00016908,2]
[338601175,1726761042128,-4541.209993,0.00016908,2]
[338601176,1726761042137,-1115.064774,0.00016908,2]
[338601177,1726761042147,-1115.064774,0.00016908,2]
[338601178,1726761042157,-1356.736386,0.00016908,2]
[338601179,1726761042166,-1356.736386,0.00016908,2]
[338601180,1726761042176,-204.030332,0.00016908,2]
[338601181,1726761042185,-204.030332,0.00016908,2]
[338601182,1726761042194,-163.609116,0.00016908,2]
[338601183,1726761042203,-1000.0,0.00016908,2]
[338601184,1726761042213,-1000.0,0.00016908,2]
[338601185,1726761042222,-1000.0,0.00016908,2]
[338601186,1726761042231,-1000.0,0.00016908,2]
[338601187,1726761042240,-1000.0,0.00016908,2]
[338601188,1726761042250,-1000.0,0.00016908,2]
[338601189,1726761042259,-1000.0,0.00016908,2]
[338601190,1726761042268,-1000.0,0.00016908,2]
[338601191,1726761042277,-1000.0,0.00016908,2]
[338601192,1726761042286,-1000.0,0.00016908,2]
[338601193,1726761042295,-1000.0,0.00016908,2]
[338601194,1726761042304,-1000.0,0.00016908,2]
[338601195,1726761042314,-1000.0,0.00016908,2]
[338601196,1726761042323,-1000.0,0.00016908,2]
[338601197,1726761042332,-151.0,0.00016908,2]
[338601198,1726761042342,-1000.0,0.00016908,2]
[338601199,1726761042352,-1000.0,0.00016908,2]
[338601200,1726761042361,-1000.0,0.00016908,2]
[338601201,1726761042370,-1000.0,0.00016908,2]
[338601202,1726761042379,-1000.0,0.00016908,2]
[338601203,1726761042389,-1000.0,0.00016908,2]
[338601204,1726761042398,-1000.0,0.00016908,2]
[338601205,1726761042407,-1000.0,0.00016908,2]
[338601206,1726761042417,-2976.436592,0.00016908,2]
[338601207,1726761042426,-1000.0,0.00016908,2]
[338601208,1726761042435,-1000.0,0.00016908,2]
[338601209,1726761042445,-1000.0,0.00016908,2]
[338601210,1726761042454,-1000.0,0.00016908,2]
[338601211,1726761042464,-1000.0,0.00016908,2]
[338601212,1726761042473,-1000.0,0.00016908,2]
[338601213,1726761042483,-1000.0,0.00016908,2]
[338601214,1726761042492,-1000.0,0.00016908,2]
[338601215,1726761042501,-1000.0,0.00016908,2]
[338601216,1726761042511,-1000.0,0.00016908,2]
[338601217,1726761042521,-1000.0,0.00016908,2]
[338601218,1726761042530,-2878.92062125,0.00016908,2]
[338601219,1726761042554,-97.51597075,0.00016908,2]
[338601220,1726761042563,-1000.0,0.00016908,2]
[338601221,1726761042573,-1000.0,0.00016908,2]
[338601222,1726761042582,-1000.0,0.00016908,2]
[338601223,1726761042591,-1000.0,0.00016908,2]
[338601224,1726761042601,-1000.0,0.00016908,2]
[338601225,1726761042610,-1000.0,0.00016908,2]
[338601226,1726761042619,-151.0,0.00016909,2]
[338601227,1726761042628,-2976.436592,0.00016909,2]
[338601228,1726761042638,-2976.436592,0.00016909,2]
[338601229,1726761042647,-277.859428,0.0001691,2]
[338601230,1726761042656,-151.0,0.0001691,2]
[338601231,1726761042665,-151.0,0.0001691,2]
[338601232,1726761042674,-1213.704167,0.0001691,2]
[338601233,1726761042683,-1213.704167,0.0001691,2]
[338601234,1726761042693,-151.0,0.0001691,2]
[338601235,1726761042701,-151.0,0.0001691,2]
[338601236,1726761042711,-151.0,0.0001691,2]
[338601237,1726761042720,-151.0,0.0001691,2]
[338601238,1726761042730,-1213.704167,0.0001691,2]
[338601239,1726761042740,-1213.704167,0.0001691,2]
[338601240,1726761042749,-151.0,0.0001691,2]
[338601241,1726761042758,-151.0,0.0001691,2]
[338601242,1726761042768,-151.0,0.0001691,2]